[Event "*** Titled Tuesday Blitz"]
[Site "Chess.com"]
[Date "2019.06.04"]
[Round "9"]
[White "kleinebeer98"]
[Black "Indianlad"]
[Result "1/2-1/2"]
[WhiteElo "2748"]
[BlackElo "2873"]
[TimeControl "180+2"]
[EndTime "15:09:44 PDT"]
[Termination "Game drawn - insufficient material"]

1. e4 {[%clk 0:03:01.9]} 1... c6 {[%clk 0:03:01.1]} 2. d4 {[%clk 0:03:02.1]}
2... d5 {[%clk 0:03:02.9]} 3. f3 {[%clk 0:03:03.6]} 3... Qb6 {[%clk 0:03:01.8]}
4. Nc3 {[%clk 0:03:03.7]} 4... e6 {[%clk 0:03:03.3]} 5. a3 {[%clk 0:02:59.8]}
5... Ne7 {[%clk 0:03:01]} 6. Be3 {[%clk 0:03:00.3]} 6... Nd7 {[%clk 0:02:55.7]}
7. Bd3 {[%clk 0:02:39.8]} 7... g6 {[%clk 0:02:40.1]} 8. Nge2 {[%clk 0:02:34.4]}
8... Bg7 {[%clk 0:02:40.8]} 9. b4 {[%clk 0:01:58.7]} 9... e5 {[%clk 0:02:28.4]}
10. exd5 {[%clk 0:01:48.7]} 10... cxd5 {[%clk 0:01:58.2]} 11. Bf2 {[%clk
0:01:37.8]} 11... exd4 {[%clk 0:01:38.3]} 12. Nb5 {[%clk 0:01:29.6]} 12... O-O
{[%clk 0:01:38.9]} 13. Nbxd4 {[%clk 0:01:26.4]} 13... Qd8 {[%clk 0:01:38.6]} 14.
O-O {[%clk 0:01:25.9]} 14... Ne5 {[%clk 0:01:39.3]} 15. Bb5 {[%clk 0:01:18.6]}
15... a6 {[%clk 0:01:38.1]} 16. Ba4 {[%clk 0:01:18.9]} 16... Nc4 {[%clk
0:01:34.5]} 17. Bb3 {[%clk 0:01:15.4]} 17... Nf5 {[%clk 0:01:33.8]} 18. Nxf5
{[%clk 0:01:01.5]} 18... Bxf5 {[%clk 0:01:32]} 19. Bd4 {[%clk 0:01:02.7]} 19...
Bh6 {[%clk 0:01:27.4]} 20. Ng3 {[%clk 0:00:52.3]} 20... Ne3 {[%clk 0:01:02.7]}
21. Nxf5 {[%clk 0:00:43.5]} 21... Nxf5 {[%clk 0:00:57]} 22. Bb2 {[%clk
0:00:41.5]} 22... d4 {[%clk 0:00:55.3]} 23. Bc1 {[%clk 0:00:29.9]} 23... Be3+
{[%clk 0:00:51.2]} 24. Kh1 {[%clk 0:00:24]} 24... Qg5 {[%clk 0:00:50.3]} 25.
Bxe3 {[%clk 0:00:18]} 25... dxe3 {[%clk 0:00:50.9]} 26. f4 {[%clk 0:00:13.3]}
26... Qf6 {[%clk 0:00:47.5]} 27. Qf3 {[%clk 0:00:13.4]} 27... Rae8 {[%clk
0:00:45.3]} 28. Rae1 {[%clk 0:00:14.3]} 28... Re7 {[%clk 0:00:46.7]} 29. Bc4
{[%clk 0:00:10.4]} 29... Nd4 {[%clk 0:00:43.3]} 30. Qd5 {[%clk 0:00:09.3]} 30...
Nxc2 {[%clk 0:00:43.7]} 31. Re2 {[%clk 0:00:06.5]} 31... Nd4 {[%clk 0:00:44.8]}
32. Ree1 {[%clk 0:00:08]} 32... e2 {[%clk 0:00:36.7]} 33. Rf2 {[%clk 0:00:08.3]}
33... Rfe8 {[%clk 0:00:38]} 34. f5 {[%clk 0:00:07.2]} 34... Nxf5 {[%clk
0:00:30.9]} 35. Kg1 {[%clk 0:00:05.9]} 35... Qd4 {[%clk 0:00:27.4]} 36. g4
{[%clk 0:00:06.2]} 36... Qxd5 {[%clk 0:00:27.6]} 37. Bxd5 {[%clk 0:00:08.1]}
37... Nd4 {[%clk 0:00:28.7]} 38. Bc4 {[%clk 0:00:06.6]} 38... Re3 {[%clk
0:00:29]} 39. Bxf7+ {[%clk 0:00:06.6]} 39... Kg7 {[%clk 0:00:30.1]} 40. Bxe8
{[%clk 0:00:08.5]} 40... Rxe8 {[%clk 0:00:30.8]} 41. Kg2 {[%clk 0:00:08.5]}
41... Re4 {[%clk 0:00:30.5]} 42. h3 {[%clk 0:00:09.2]} 42... g5 {[%clk
0:00:28.1]} 43. Kg3 {[%clk 0:00:07.4]} 43... Re3+ {[%clk 0:00:28.7]} 44. Kg2
{[%clk 0:00:08.8]} 44... b6 {[%clk 0:00:27.4]} 45. a4 {[%clk 0:00:05.9]} 45...
b5 {[%clk 0:00:27.7]} 46. a5 {[%clk 0:00:06]} 46... Re4 {[%clk 0:00:28.7]} 47.
Kg3 {[%clk 0:00:03.4]} 47... h6 {[%clk 0:00:29.5]} 48. Kg2 {[%clk 0:00:04.7]}
48... Kg6 {[%clk 0:00:29.5]} 49. Kg3 {[%clk 0:00:04.9]} 49... Re3+ {[%clk
0:00:29.5]} 50. Kg2 {[%clk 0:00:05.8]} 50... Ne6 {[%clk 0:00:30.5]} 51. h4
{[%clk 0:00:04.8]} 51... Nf4+ {[%clk 0:00:29.1]} 52. Rxf4 {[%clk 0:00:04]} 52...
gxf4 {[%clk 0:00:31]} 53. Kf2 {[%clk 0:00:05.4]} 53... Rh3 {[%clk 0:00:23.9]}
54. Rxe2 {[%clk 0:00:05.7]} 54... Rxh4 {[%clk 0:00:25.4]} 55. Kf3 {[%clk
0:00:05.5]} 55... Rh1 {[%clk 0:00:21.5]} 56. Re6+ {[%clk 0:00:06]} 56... Kg5
{[%clk 0:00:23]} 57. Re5+ {[%clk 0:00:06.7]} 57... Kf6 {[%clk 0:00:24.4]} 58.
Rc5 {[%clk 0:00:06.1]} 58... Rf1+ {[%clk 0:00:25.8]} 59. Ke4 {[%clk 0:00:06.7]}
59... f3 {[%clk 0:00:26]} 60. Rf5+ {[%clk 0:00:07]} 60... Kg6 {[%clk 0:00:26.9]}
61. Rxf3 {[%clk 0:00:05.1]} 61... Rb1 {[%clk 0:00:28.3]} 62. Ke5 {[%clk
0:00:04.8]} 62... Rxb4 {[%clk 0:00:30]} 63. Rf6+ {[%clk 0:00:06.7]} 63... Kg5
{[%clk 0:00:30.5]} 64. Rxa6 {[%clk 0:00:08.6]} 64... Ra4 {[%clk 0:00:30.3]} 65.
Kd5 {[%clk 0:00:09.7]} 65... b4 {[%clk 0:00:25.8]} 66. Kc4 {[%clk 0:00:11.6]}
66... b3+ {[%clk 0:00:16.2]} 67. Kxb3 {[%clk 0:00:12.8]} 67... Rxg4 {[%clk
0:00:18.1]} 68. Rb6 {[%clk 0:00:13.9]} 68... Rf4 {[%clk 0:00:18.7]} 69. a6
{[%clk 0:00:14.8]} 69... Rf8 {[%clk 0:00:20.3]} 70. a7 {[%clk 0:00:13.8]} 70...
Ra8 {[%clk 0:00:21.7]} 71. Rb7 {[%clk 0:00:14]} 71... h5 {[%clk 0:00:23.2]} 72.
Kb4 {[%clk 0:00:14.1]} 72... h4 {[%clk 0:00:24.1]} 73. Kb5 {[%clk 0:00:15]}
73... h3 {[%clk 0:00:24]} 74. Kb6 {[%clk 0:00:14]} 74... Kg4 {[%clk 0:00:22.7]}
75. Rb8 {[%clk 0:00:13.5]} 75... Rxa7 {[%clk 0:00:24.1]} 76. Kxa7 {[%clk
0:00:15.4]} 76... h2 {[%clk 0:00:24.8]} 77. Rg8+ {[%clk 0:00:17.3]} 77... Kf3
{[%clk 0:00:25.2]} 78. Rh8 {[%clk 0:00:19.2]} 78... Kg2 {[%clk 0:00:26.3]} 79.
Rxh2+ {[%clk 0:00:20.4]} 79... Kxh2 {[%clk 0:00:28.2]} 1/2-1/2

[Event "*** Titled Tuesday Blitz"]
[Site "Chess.com"]
[Date "2019.06.04"]
[Round "10"]
[White "velemajstor767276"]
[Black "Tacticalon"]
[Result "1/2-1/2"]
[WhiteElo "2553"]
[BlackElo "2737"]
[TimeControl "180+2"]
[EndTime "15:13:35 PDT"]
[Termination "Game drawn by agreement"]

1. d4 {[%clk 0:03:01.9]} 1... d5 {[%clk 0:02:57.3]} 2. c4 {[%clk 0:03:03.2]}
2... c6 {[%clk 0:02:56.8]} 3. Nc3 {[%clk 0:03:04.8]} 3... Nf6 {[%clk 0:02:55.2]}
4. Nf3 {[%clk 0:03:05.9]} 4... e6 {[%clk 0:02:51]} 5. Bg5 {[%clk 0:03:06.1]}
5... h6 {[%clk 0:02:46.7]} 6. Bxf6 {[%clk 0:03:06.9]} 6... Qxf6 {[%clk
0:02:47.4]} 7. Qb3 {[%clk 0:03:08.5]} 7... dxc4 {[%clk 0:02:37.7]} 8. Qxc4
{[%clk 0:03:07.5]} 8... Nd7 {[%clk 0:02:38.4]} 9. e4 {[%clk 0:03:06.9]} 9... e5
{[%clk 0:02:33]} 10. dxe5 {[%clk 0:02:45.6]} 10... Nxe5 {[%clk 0:02:32]} 11.
Nxe5 {[%clk 0:02:47.2]} 11... Qxe5 {[%clk 0:02:31.5]} 1/2-1/2

[Event "*** Titled Tuesday Blitz"]
[Site "Chess.com"]
[Date "2019.06.04"]
[Round "10"]
[White "jamengrand"]
[Black "europa2012"]
[Result "1-0"]
[WhiteElo "2148"]
[BlackElo "2150"]
[TimeControl "180+2"]
[EndTime "15:14:26 PDT"]
[Termination "jamengrand won by resignation"]

1. e4 {[%clk 0:03:01.9]} 1... e6 {[%clk 0:03:00.6]} 2. d4 {[%clk 0:03:02.6]}
2... d5 {[%clk 0:03:01.8]} 3. Nc3 {[%clk 0:03:03.8]} 3... Nf6 {[%clk 0:03:02.4]}
4. e5 {[%clk 0:03:04.8]} 4... Nfd7 {[%clk 0:03:03.6]} 5. f4 {[%clk 0:03:06.1]}
5... c5 {[%clk 0:03:04.8]} 6. Nf3 {[%clk 0:03:07.4]} 6... Nc6 {[%clk 0:03:06]}
7. Ne2 {[%clk 0:03:08.6]} 7... a6 {[%clk 0:03:06]} 8. c3 {[%clk 0:03:09.4]} 8...
b5 {[%clk 0:03:07.1]} 9. h4 {[%clk 0:03:09.8]} 9... Be7 {[%clk 0:03:08]} 10. Rh3
{[%clk 0:03:11]} 10... a5 {[%clk 0:03:03.9]} 11. Be3 {[%clk 0:03:05.4]} 11... b4
{[%clk 0:03:02.4]} 12. Kf2 {[%clk 0:03:05.3]} 12... Ba6 {[%clk 0:03:01]} 13. Kg1
{[%clk 0:03:05.7]} 13... Qb6 {[%clk 0:02:52.2]} 14. f5 {[%clk 0:03:05.4]} 14...
exf5 {[%clk 0:02:46.4]} 15. Nf4 {[%clk 0:03:06.3]} 15... Bxf1 {[%clk 0:02:39]}
16. Qxf1 {[%clk 0:03:02.3]} 16... cxd4 {[%clk 0:02:33.4]} 17. cxd4 {[%clk
0:02:52.3]} 17... Qb7 {[%clk 0:02:24.3]} 18. e6 {[%clk 0:02:47.9]} 18... fxe6
{[%clk 0:02:22.5]} 19. Nxe6 {[%clk 0:02:49.1]} 19... Bf6 {[%clk 0:02:23.3]} 20.
Rc1 {[%clk 0:02:43.6]} 20... Kf7 {[%clk 0:02:22.3]} 21. Nfg5+ {[%clk 0:02:44]}
21... Bxg5 {[%clk 0:02:22.6]} 22. Nxg5+ {[%clk 0:02:44.2]} 22... Kg8 {[%clk
0:02:22.4]} 23. Qxf5 {[%clk 0:02:44.7]} 23... Nf8 {[%clk 0:02:13.2]} 24. Rxc6
{[%clk 0:02:43.7]} 1-0

[Event "*** Titled Tuesday Blitz"]
[Site "Chess.com"]
[Date "2019.06.04"]
[Round "10"]
[White "Shivagami"]
[Black "Fins0905"]
[Result "0-1"]
[WhiteElo "2085"]
[BlackElo "2644"]
[TimeControl "180+2"]
[EndTime "15:15:09 PDT"]
[Termination "Fins0905 won by resignation"]

1. d4 {[%clk 0:03:01.9]} 1... d5 {[%clk 0:03:00.5]} 2. Bf4 {[%clk 0:03:03.4]}
2... c5 {[%clk 0:03:01.2]} 3. e3 {[%clk 0:03:04.3]} 3... cxd4 {[%clk 0:03:02.4]}
4. exd4 {[%clk 0:03:04.6]} 4... Nc6 {[%clk 0:03:04]} 5. c3 {[%clk 0:03:05]} 5...
Nf6 {[%clk 0:03:03.5]} 6. Nd2 {[%clk 0:03:05.9]} 6... Bf5 {[%clk 0:03:03.9]} 7.
Ngf3 {[%clk 0:03:05.7]} 7... e6 {[%clk 0:03:05.1]} 8. Qb3 {[%clk 0:03:06.5]}
8... Bd6 {[%clk 0:03:03.8]} 9. Qxb7 {[%clk 0:02:59.1]} 9... Bxf4 {[%clk
0:03:04.2]} 10. Qxc6+ {[%clk 0:02:59.6]} 10... Kf8 {[%clk 0:03:05.6]} 11. Ne5
{[%clk 0:02:51.8]} 11... g5 {[%clk 0:02:30.6]} 12. Ba6 {[%clk 0:02:41]} 12... g4
{[%clk 0:02:17]} 13. Bb7 {[%clk 0:02:32.7]} 13... Rb8 {[%clk 0:02:13]} 14. Qc5+
{[%clk 0:02:33.4]} 14... Kg7 {[%clk 0:02:11.9]} 15. Nc6 {[%clk 0:02:33.4]} 15...
Qc7 {[%clk 0:02:03.7]} 16. Na5 {[%clk 0:01:53.1]} 16... Bxd2+ {[%clk 0:02:00.2]}
17. Kxd2 {[%clk 0:01:51.6]} 17... Ne4+ {[%clk 0:02:00.5]} 0-1

[Event "*** Titled Tuesday Blitz"]
[Site "Chess.com"]
[Date "2019.06.04"]
[Round "10"]
[White "Eliwood44"]
[Black "nitpicker"]
[Result "0-1"]
[WhiteElo "2339"]
[BlackElo "2227"]
[TimeControl "180+2"]
[EndTime "15:15:19 PDT"]
[Termination "nitpicker won by resignation"]

1. d4 {[%clk 0:03:01.9]} 1... Nf6 {[%clk 0:03:00.6]} 2. Nf3 {[%clk 0:03:03]}
2... b6 {[%clk 0:03:00.3]} 3. Bg5 {[%clk 0:03:01.9]} 3... e6 {[%clk 0:02:51.6]}
4. e4 {[%clk 0:03:02.1]} 4... h6 {[%clk 0:02:51.8]} 5. Bxf6 {[%clk 0:03:02.8]}
5... Qxf6 {[%clk 0:02:53]} 6. Bd3 {[%clk 0:03:04.1]} 6... g6 {[%clk 0:02:46.6]}
7. e5 {[%clk 0:02:59.6]} 7... Qe7 {[%clk 0:02:46.1]} 8. Nbd2 {[%clk 0:03:00.4]}
8... Bb7 {[%clk 0:02:44.6]} 9. Qe2 {[%clk 0:03:01.2]} 9... Bg7 {[%clk
0:02:43.2]} 10. c3 {[%clk 0:03:01.7]} 10... d6 {[%clk 0:02:39.4]} 11. O-O {[%clk
0:02:58.8]} 11... Nd7 {[%clk 0:02:39]} 12. a4 {[%clk 0:02:58.6]} 12... a5 {[%clk
0:02:39.1]} 13. Rfe1 {[%clk 0:02:53.6]} 13... d5 {[%clk 0:02:31]} 14. c4 {[%clk
0:02:22.7]} 14... O-O {[%clk 0:02:29.5]} 15. cxd5 {[%clk 0:02:16.3]} 15... Bxd5
{[%clk 0:02:19.2]} 16. Rac1 {[%clk 0:02:15.9]} 16... c5 {[%clk 0:02:17.3]} 17.
Ne4 {[%clk 0:02:05.6]} 17... cxd4 {[%clk 0:02:09.9]} 18. Rc7 {[%clk 0:01:46.7]}
18... Qd8 {[%clk 0:02:10.1]} 19. Rec1 {[%clk 0:01:43.2]} 19... Nxe5 {[%clk
0:02:08.4]} 20. Nxe5 {[%clk 0:01:44.2]} 20... Bxe5 {[%clk 0:02:08.7]} 21. R7c2
{[%clk 0:01:45.7]} 21... Bg7 {[%clk 0:02:06]} 22. h4 {[%clk 0:01:46.4]} 22...
Qxh4 {[%clk 0:02:03]} 0-1

[Event "*** Titled Tuesday Blitz"]
[Site "Chess.com"]
[Date "2019.06.04"]
[Round "10"]
[White "Ginger_GM"]
[Black "Alexander_Moskalenko"]
[Result "0-1"]
[WhiteElo "2552"]
[BlackElo "2882"]
[TimeControl "180+2"]
[EndTime "15:15:39 PDT"]
[Termination "Alexander_Moskalenko won by resignation"]

1. g4 {[%clk 0:03:01.9]} 1... e6 {[%clk 0:03:00.3]} 2. h4 {[%clk 0:03:01.2]}
2... d5 {[%clk 0:03:02.2]} 3. g5 {[%clk 0:03:01.2]} 3... a5 {[%clk 0:03:02.8]}
4. d4 {[%clk 0:03:00.8]} 4... a4 {[%clk 0:03:04]} 5. c4 {[%clk 0:02:58.5]} 5...
c5 {[%clk 0:03:04.2]} 6. cxd5 {[%clk 0:02:48]} 6... exd5 {[%clk 0:03:06.1]} 7.
e4 {[%clk 0:02:45.6]} 7... dxe4 {[%clk 0:03:04.2]} 8. d5 {[%clk 0:02:46.5]} 8...
f5 {[%clk 0:02:52.4]} 9. Nc3 {[%clk 0:02:42.8]} 9... a3 {[%clk 0:02:39.6]} 10.
Nh3 {[%clk 0:02:33.2]} 10... Bd6 {[%clk 0:02:34.1]} 11. bxa3 {[%clk 0:02:26.1]}
11... Be5 {[%clk 0:02:28.9]} 12. Bb2 {[%clk 0:02:23]} 12... Rxa3 {[%clk
0:02:09.1]} 13. Bb5+ {[%clk 0:01:37.4]} 13... Bd7 {[%clk 0:02:03.8]} 14. Bxd7+
{[%clk 0:01:32.5]} 14... Nxd7 {[%clk 0:02:05.7]} 15. Bxa3 {[%clk 0:01:31.7]}
15... Bxc3+ {[%clk 0:02:07.2]} 16. Kf1 {[%clk 0:01:32.7]} 16... Qa5 {[%clk
0:02:08.8]} 17. Rb1 {[%clk 0:01:18.2]} 17... Qxa3 {[%clk 0:02:06.9]} 18. Rxb7
{[%clk 0:01:18.6]} 18... Qa6+ {[%clk 0:02:08.3]} 0-1

[Event "*** Titled Tuesday Blitz"]
[Site "Chess.com"]
[Date "2019.06.04"]
[Round "10"]
[White "PNEPaul"]
[Black "Marcus_Harvey"]
[Result "0-1"]
[WhiteElo "1840"]
[BlackElo "2581"]
[TimeControl "180+2"]
[EndTime "15:16:18 PDT"]
[Termination "Marcus_Harvey won by resignation"]

1. e4 {[%clk 0:03:01.9]} 1... c5 {[%clk 0:02:38.3]} 2. d4 {[%clk 0:03:02.2]}
2... cxd4 {[%clk 0:02:38.7]} 3. c3 {[%clk 0:03:03.5]} 3... dxc3 {[%clk
0:02:39.1]} 4. Nxc3 {[%clk 0:03:04.4]} 4... Nc6 {[%clk 0:02:41]} 5. Nf3 {[%clk
0:03:05.4]} 5... d6 {[%clk 0:02:41.1]} 6. Bc4 {[%clk 0:03:06.2]} 6... e6 {[%clk
0:02:41.5]} 7. Qe2 {[%clk 0:03:06.5]} 7... a6 {[%clk 0:02:41.8]} 8. a3 {[%clk
0:03:06.8]} 8... b5 {[%clk 0:02:42.6]} 9. Ba2 {[%clk 0:03:04.9]} 9... Nf6 {[%clk
0:02:40]} 10. O-O {[%clk 0:03:03.1]} 10... Be7 {[%clk 0:02:40.4]} 11. Bg5 {[%clk
0:03:00.5]} 11... h6 {[%clk 0:02:39.8]} 12. Bh4 {[%clk 0:03:00]} 12... Nd7
{[%clk 0:02:38.4]} 13. Bxe7 {[%clk 0:02:50.5]} 13... Qxe7 {[%clk 0:02:39.6]} 14.
Rfd1 {[%clk 0:02:50.8]} 14... Nde5 {[%clk 0:02:40.6]} 15. Nxe5 {[%clk
0:02:50.3]} 15... dxe5 {[%clk 0:02:40.7]} 16. Rac1 {[%clk 0:02:48.3]} 16... Nd4
{[%clk 0:02:40.3]} 17. Qe3 {[%clk 0:02:39.5]} 17... O-O {[%clk 0:02:29.2]} 18.
f4 {[%clk 0:02:36]} 18... f6 {[%clk 0:02:22.1]} 19. f5 {[%clk 0:02:28.9]} 19...
Ra7 {[%clk 0:02:20.1]} 20. Ne2 {[%clk 0:02:17.3]} 20... Nxe2+ {[%clk 0:02:21]}
21. Qxe2 {[%clk 0:02:17.4]} 21... Kh8 {[%clk 0:02:22.3]} 22. Qg4 {[%clk
0:01:57.7]} 22... exf5 {[%clk 0:02:21.1]} 23. exf5 {[%clk 0:01:58.2]} 23... Rd7
{[%clk 0:02:20.8]} 24. Rxd7 {[%clk 0:01:43.8]} 24... Bxd7 {[%clk 0:02:19.8]} 25.
Re1 {[%clk 0:01:17.5]} 25... a5 {[%clk 0:02:10.9]} 26. h4 {[%clk 0:01:16.6]}
26... b4 {[%clk 0:02:11.1]} 27. axb4 {[%clk 0:01:13.1]} 27... Qxb4 {[%clk
0:02:10.1]} 28. Rd1 {[%clk 0:01:06.1]} 28... Qxg4 {[%clk 0:02:08.6]} 0-1

[Event "*** Titled Tuesday Blitz"]
[Site "Chess.com"]
[Date "2019.06.04"]
[Round "10"]
[White "LastHeroJr"]
[Black "JMatias"]
[Result "1-0"]
[WhiteElo "2516"]
[BlackElo "2428"]
[TimeControl "180+2"]
[EndTime "15:16:30 PDT"]
[Termination "LastHeroJr won on time"]

1. e4 {[%clk 0:03:01.9]} 1... c5 {[%clk 0:02:57]} 2. Nf3 {[%clk 0:03:03]} 2...
d6 {[%clk 0:02:57.8]} 3. Bb5+ {[%clk 0:03:03.9]} 3... Nc6 {[%clk 0:02:55.2]} 4.
O-O {[%clk 0:03:04.3]} 4... Bg4 {[%clk 0:02:53.6]} 5. h3 {[%clk 0:03:00.5]} 5...
Bxf3 {[%clk 0:02:46.8]} 6. Qxf3 {[%clk 0:03:02.4]} 6... Rc8 {[%clk 0:02:42.9]}
7. c3 {[%clk 0:03:01.1]} 7... Nf6 {[%clk 0:02:10]} 8. d4 {[%clk 0:03:00.2]} 8...
cxd4 {[%clk 0:02:11.4]} 9. cxd4 {[%clk 0:03:01.2]} 9... a6 {[%clk 0:02:00.1]}
10. Bxc6+ {[%clk 0:03:02.3]} 10... bxc6 {[%clk 0:02:02]} 11. e5 {[%clk 0:02:48]}
11... Nd5 {[%clk 0:02:01.1]} 12. Nd2 {[%clk 0:02:42]} 12... e6 {[%clk
0:02:00.5]} 13. Ne4 {[%clk 0:02:28.7]} 13... Be7 {[%clk 0:01:42.4]} 14. Qg3
{[%clk 0:02:27]} 14... Kf8 {[%clk 0:00:31]} 15. exd6 {[%clk 0:02:16.5]} 15...
Bf6 {[%clk 0:00:28.5]} 16. Be3 {[%clk 0:02:11]} 1-0

[Event "*** Titled Tuesday Blitz"]
[Site "Chess.com"]
[Date "2019.06.04"]
[Round "10"]
[White "ChessWeebs"]
[Black "VerdeNotte"]
[Result "1/2-1/2"]
[WhiteElo "2777"]
[BlackElo "2787"]
[TimeControl "180+2"]
[EndTime "15:16:38 PDT"]
[Termination "Game drawn by repetition"]

1. d4 {[%clk 0:03:00]} 1... Nf6 {[%clk 0:02:59.7]} 2. c4 {[%clk 0:03:00.8]} 2...
g6 {[%clk 0:03:00.7]} 3. Nf3 {[%clk 0:03:01.4]} 3... Bg7 {[%clk 0:03:01.8]} 4.
g3 {[%clk 0:03:03.1]} 4... d6 {[%clk 0:02:59.5]} 5. Bg2 {[%clk 0:03:04.4]} 5...
O-O {[%clk 0:03:00.6]} 6. Nc3 {[%clk 0:03:05.3]} 6... c5 {[%clk 0:03:01.7]} 7.
O-O {[%clk 0:03:04]} 7... Nc6 {[%clk 0:03:02.5]} 8. dxc5 {[%clk 0:03:02.8]} 8...
dxc5 {[%clk 0:03:04.1]} 9. Be3 {[%clk 0:03:03.6]} 9... b6 {[%clk 0:02:53.9]} 10.
Ne5 {[%clk 0:02:51.3]} 10... Nxe5 {[%clk 0:02:53.8]} 11. Bxa8 {[%clk 0:02:49.8]}
11... Nxc4 {[%clk 0:02:53.1]} 12. Bc1 {[%clk 0:02:47]} 12... Bh3 {[%clk
0:02:43.6]} 13. Bg2 {[%clk 0:02:47.1]} 13... Qc8 {[%clk 0:02:37.8]} 14. Qc2
{[%clk 0:02:43.9]} 14... Bxg2 {[%clk 0:02:25.3]} 15. Kxg2 {[%clk 0:02:33.6]}
15... b5 {[%clk 0:02:24.8]} 16. f3 {[%clk 0:02:06]} 16... Qb7 {[%clk 0:02:05.7]}
17. Rd1 {[%clk 0:01:48.7]} 17... Ng4 {[%clk 0:02:03.7]} 18. Rd3 {[%clk
0:01:12.1]} 18... Nge5 {[%clk 0:01:49.9]} 19. Rd1 {[%clk 0:01:04.7]} 19... Ng4
{[%clk 0:01:49.7]} 20. Rd3 {[%clk 0:01:03.9]} 20... Bd4 {[%clk 0:01:49.5]} 21.
Nd1 {[%clk 0:01:04.7]} 21... Nge5 {[%clk 0:01:45.4]} 22. Rb3 {[%clk 0:01:06]}
22... Na5 {[%clk 0:01:44.5]} 23. Ra3 {[%clk 0:01:05.5]} 23... Nac4 {[%clk
0:01:42.9]} 24. Rb3 {[%clk 0:01:04.8]} 24... Na5 {[%clk 0:01:43.6]} 25. Ra3
{[%clk 0:01:06.2]} 25... Nec4 {[%clk 0:01:44.8]} 26. Rd3 {[%clk 0:01:06]} 26...
Ne5 {[%clk 0:01:43.7]} 27. Ra3 {[%clk 0:01:02.1]} 1/2-1/2

[Event "*** Titled Tuesday Blitz"]
[Site "Chess.com"]
[Date "2019.06.04"]
[Round "10"]
[White "bugsbunny444"]
[Black "vohiraa"]
[Result "1-0"]
[WhiteElo "2475"]
[BlackElo "2300"]
[TimeControl "180+2"]
[EndTime "15:17:02 PDT"]
[Termination "bugsbunny444 won by resignation"]

1. Nf3 {[%clk 0:03:01.9]} 1... d5 {[%clk 0:03:00.4]} 2. c4 {[%clk 0:03:02.6]}
2... c6 {[%clk 0:02:56.6]} 3. g3 {[%clk 0:03:03.9]} 3... Nf6 {[%clk 0:02:58.1]}
4. Bg2 {[%clk 0:03:05.4]} 4... Bf5 {[%clk 0:02:58.7]} 5. cxd5 {[%clk 0:03:06.7]}
5... cxd5 {[%clk 0:02:59.6]} 6. Qb3 {[%clk 0:03:08.4]} 6... Qb6 {[%clk
0:03:00.8]} 7. Nc3 {[%clk 0:03:09.8]} 7... Qxb3 {[%clk 0:03:01]} 8. axb3 {[%clk
0:03:10.9]} 8... Nc6 {[%clk 0:03:02.9]} 9. O-O {[%clk 0:03:11.4]} 9... e6 {[%clk
0:03:03.9]} 10. d3 {[%clk 0:03:12.9]} 10... h6 {[%clk 0:03:04.6]} 11. Be3 {[%clk
0:03:14.2]} 11... Be7 {[%clk 0:03:05.4]} 12. Nd4 {[%clk 0:03:15.5]} 12... Nxd4
{[%clk 0:03:06]} 13. Bxd4 {[%clk 0:03:17.4]} 13... O-O {[%clk 0:03:07.3]} 14.
Bxa7 {[%clk 0:03:15.5]} 14... Rfc8 {[%clk 0:02:55.5]} 15. e4 {[%clk 0:03:13.7]}
15... dxe4 {[%clk 0:02:54.2]} 16. dxe4 {[%clk 0:03:15.1]} 16... Bh7 {[%clk
0:02:56.1]} 17. e5 {[%clk 0:03:13]} 17... Nd5 {[%clk 0:02:39.5]} 18. Nxd5 {[%clk
0:03:13.2]} 18... exd5 {[%clk 0:02:41.4]} 19. Bxd5 {[%clk 0:03:14]} 19... Bd3
{[%clk 0:02:42.5]} 20. Rfd1 {[%clk 0:03:00.4]} 20... Ba6 {[%clk 0:02:40.8]} 21.
Rxa6 {[%clk 0:03:01.2]} 21... bxa6 {[%clk 0:02:41.6]} 22. Bxa8 {[%clk
0:03:02.1]} 22... Rxa8 {[%clk 0:02:43.5]} 23. Rd7 {[%clk 0:03:03]} 23... Bb4
{[%clk 0:02:41.7]} 24. Rb7 {[%clk 0:02:54.3]} 24... a5 {[%clk 0:02:41.3]} 25.
Rb8+ {[%clk 0:02:52]} 25... Rxb8 {[%clk 0:02:42.1]} 26. Bxb8 {[%clk 0:02:53.9]}
26... Kf8 {[%clk 0:02:23.1]} 27. Kg2 {[%clk 0:02:39.5]} 27... Ke8 {[%clk
0:02:24.2]} 28. Kf3 {[%clk 0:02:40.9]} 28... Kd7 {[%clk 0:02:24.6]} 29. Ke4
{[%clk 0:02:42.1]} 29... Ke6 {[%clk 0:02:25.3]} 30. f4 {[%clk 0:02:39.3]} 30...
g6 {[%clk 0:02:26.5]} 31. g4 {[%clk 0:02:39.2]} 31... h5 {[%clk 0:02:12.4]} 32.
f5+ {[%clk 0:02:39.2]} 32... Kd7 {[%clk 0:02:02.4]} 33. e6+ {[%clk 0:02:35.9]}
33... Ke7 {[%clk 0:01:59.4]} 34. exf7 {[%clk 0:02:08.6]} 34... Kxf7 {[%clk
0:02:01.3]} 35. gxh5 {[%clk 0:02:02.2]} 35... gxh5 {[%clk 0:02:00.9]} 36. Be5
{[%clk 0:02:03.7]} 36... h4 {[%clk 0:01:54.3]} 37. h3 {[%clk 0:02:05]} 37... Ke7
{[%clk 0:01:54.3]} 38. Bc3 {[%clk 0:02:00.4]} 38... Bd6 {[%clk 0:01:49.2]} 39.
Bxa5 {[%clk 0:02:00.9]} 39... Kf6 {[%clk 0:01:50.6]} 40. Bd8+ {[%clk 0:01:59.3]}
40... Kf7 {[%clk 0:01:52.1]} 41. Bxh4 {[%clk 0:02:00.2]} 41... Bb4 {[%clk
0:01:44.5]} 42. Bg5 {[%clk 0:01:59.6]} 42... Bc5 {[%clk 0:01:44.9]} 43. h4
{[%clk 0:02:00.6]} 43... Bb4 {[%clk 0:01:46]} 44. h5 {[%clk 0:02:01.9]} 44...
Bc5 {[%clk 0:01:47.9]} 45. Bd2 {[%clk 0:02:01.4]} 45... Bb4 {[%clk 0:01:49.8]}
46. Bxb4 {[%clk 0:02:01.7]} 1-0